[Event "POR-ch Amateur 2018"]
[Site "Braga"]
[Date "2018.09.06"]
[Round "1"]
[White "Monteiro, Jose Macedo"]
[Black "Andrade, Ricardo Sarmento"]
[Result "1-0"]
[ECO "B31"]
[WhiteElo "1889"]
[BlackElo "1744"]
[PlyCount "105"]
[EventDate "2018.09.02"]
[EventType "tourn"]
[EventCountry "POR"]
[TimeControl "40/5400+30:1800+30"]
[WhiteClock "0:09:31"]
[BlackClock "0:20:02"]

1. e4 {[%emt 0:00:00]} c5 {[%emt 0:00:00]} 2. Nf3 {[%emt 0:00:00]} Nc6 {[%emt 0:00:00]} 3. Bb5 {[%emt 0:00:06]} g6 {[%emt 0:00:00]} 4. O-O {[%emt 0:00:47]} Bg7 {[%emt 0:00:01]} 5. Re1 {[%emt 0:00:07]} Nf6 {[%emt 0:01:54]} 6. c3 {[%emt 0:00:15]} O-O {[%emt 0:00:29]} 7. d4 {[%emt 0:00:12]} d5 {[%emt 0:01:27]} 8. e5 {[%emt 0:01:09]} Ne4 {[%emt 0:00:12]} 9. h3 {[%emt 0:01:33]} cxd4 {[%emt 0:11:06]} 10. cxd4 {[%emt 0:00:11]} Qb6 {[%emt 0:00:15]} 11. Ba4 {[%emt 0:00:23]} h5 {[%emt 0:01:11]} 12. Bb3 {[%emt 0:00:12]} Be6 {[%emt 0:01:21]} 13. Nc3 {[%emt 0:00:13]} Nxc3 {[%emt 0:00:28]} 14. bxc3 {[%emt 0:00:13]} Na5 {[%emt 0:00:53]} 15. Bc2 {[%emt 0:04:15]} Nc4 {[%emt 0:02:37]} 16. Nh4 {[%emt 0:01:11]} Rac8 {[%emt 0:02:57]} 17. Nxg6 {[%emt 0:01:17]} fxg6 {[%emt 0:00:36]} 18. Bxg6 {[%emt 0:00:04]} Bf7 {[%emt 0:05:47]} 19. Bc2 {[%emt 0:03:20]} Bg6 {[%emt 0:01:00]} 20. Bg5 {[%emt 0:01:10]} Nxe5 {[%emt 0:08:49]} 21. Bxg6 {[%emt 0:03:56]} Nxg6 {[%emt 0:00:15]} 22. Rb1 {[%emt 0:03:25]} Qc6 {[%emt 0:02:20]} 23. Qxh5 {[%emt 0:00:26]} e5 {[%emt 0:03:15]} 24. Qg4 {[%emt 0:18:51]} Rce8 {[%emt 0:02:25]} 25. h4 {[%emt 0:03:44]} Qc8 {[%emt 0:13:04]} 26. Qxc8 {[%emt 0:04:21]} Rxc8 {[%emt 0:00:06]} 27. dxe5 {[%emt 0:08:30]} Nxe5 {[%emt 0:04:03]} 28. Rxb7 {[%emt 0:06:24]} Rf7 {[%emt 0:02:17]} 29. Rb5 {[%emt 0:05:11]} Rxc3 {[%emt 0:02:32]} 30. Rxd5 {[%emt 0:00:29]} Rc2 {[%emt 0:08:54]} 31. f3 {[%emt 0:05:10]} Rxa2 {[%emt 0:03:36]} 32. Rdxe5 {[%emt 0:03:34]} Bxe5 {[%emt 0:00:07]} 33. Rxe5 {[%emt 0:00:07]} Rc7 {[%emt 0:02:31]} 34. Re4 {[%emt 0:04:21]} Rcc2 {[%emt 0:01:25]} 35. Rg4 {[%emt 0:00:08]} a5 {[%emt 0:01:09]} 36. Bf6+ {[%emt 0:00:24]} Kh7 {[%emt 0:01:24]} 37. Kh2 {[%emt 0:00:22]} a4 {[%emt 0:00:28]} 38. Kh3 {[%emt 0:00:09]} a3 {[%emt 0:00:14]} 39. Rg7+ {[%emt 0:01:12]} Kh6 {[%emt 0:00:48]} 40. g4 {[%emt 0:01:52]} Rc6 {[%emt 0:05:24]} 41. Bd4 {[%emt 0:33:11]} Rd2 {[%emt 0:31:21]} 42. g5+ {[%emt 0:00:18]} Kh5 {[%emt 0:00:02]} 43. Rh7+ {[%emt 0:00:14]} Kg6 {[%emt 0:00:08]} 44. Rh6+ {[%emt 0:00:13]} Kf5 {[%emt 0:00:21]} 45. Rxc6 {[%emt 0:00:22]} Rxd4 {[%emt 0:00:07]} 46. Rf6+ {[%emt 0:00:17]} Ke5 {[%emt 0:00:09]} 47. Ra6 {[%emt 0:00:13]} Rd3 {[%emt 0:00:46]} 48. Kg4 {[%emt 0:00:30]} Kd5 {[%emt 0:00:50]} 49. g6 {[%emt 0:00:27]} Kc4 {[%emt 0:00:13]} 50. h5 {[%emt 0:00:43]} Kb5 {[%emt 0:02:13]} 51. Ra8 {[%emt 0:00:21]} Rd4+ {[%emt 0:00:18]} 52. f4 {[%emt 0:00:10]} Rd7 {[%emt 0:02:41]} 53. Rxa3 {[%emt 0:00:15]} 1-0

[Event "POR-ch Amateur 2018"]
[Site "Braga"]
[Date "2018.09.06"]
[Round "1"]
[White "Carvalho, Vitor Hugo Pina Soa"]
[Black "Duarte, Francisco"]
[Result "1-0"]
[ECO "C42"]
[WhiteElo "1884"]
[BlackElo "1205"]
[PlyCount "65"]
[EventDate "2018.09.02"]
[EventType "tourn"]
[EventCountry "POR"]
[TimeControl "40/5400+30:1800+30"]

1. e4 e5 2. Nf3 Nf6 3. Nxe5 d6 4. Nf3 Nxe4 5. Be2 Be7 6. d3 Nf6 7. Nc3 Nc6 8. Bg5 O-O 9. Qd2 Be6 10. h4 h6 11. Bf4 a5 12. Nh2 h5 13. Qd1 Nd4 14. Be3 Nxe2 15. Qxe2 Ng4 16. O-O-O Nxe3 17. Qxe3 Bxh4 18. Nf3 Bg4 19. Nxh4 Re8 20. Qd2 Bxd1 21. Nxd1 b5 22. Nf5 Re5 23. Rxh5 Qf6 24. g4 Rae8 25. Nde3 Qe6 26. Rh3 Qxa2 27. Kd1 Qxb2 28. Ke2 a4 29. Qd1 a3 30. Qh1 f6 31. Rh8+ Kf7 32. Qh5+ Ke6 33. Qxe8# 1-0

[Event "POR-ch Amateur 2018"]
[Site "Braga"]
[Date "2018.09.06"]
[Round "1"]
[White "Demyanchuk, Sergey"]
[Black "Santos, Jose Miguel Sereno"]
[Result "1-0"]
[ECO "B10"]
[WhiteElo "1818"]
[BlackElo "1706"]
[PlyCount "93"]
[EventDate "2018.09.02"]
[EventType "tourn"]
[EventCountry "POR"]
[TimeControl "40/5400+30:1800+30"]
[WhiteClock "0:01:05"]
[BlackClock "0:47:20"]

1. e4 {[%emt 0:00:00]} c6 {[%emt 0:00:00]} 2. Nf3 {[%emt 0:00:00]} d5 {[%emt 0:00:00]} 3. exd5 {[%emt 0:00:35]} cxd5 {[%emt 0:00:03]} 4. d4 {[%emt 0:00:04]} Nc6 {[%emt 0:00:15]} 5. Nc3 {[%emt 0:00:20]} Nf6 {[%emt 0:00:46]} 6. Be2 {[%emt 0:00:43]} Bf5 {[%emt 0:02:14]} 7. O-O {[%emt 0:00:22]} e6 {[%emt 0:00:09]} 8. Re1 {[%emt 0:01:02]} Be7 {[%emt 0:00:45]} 9. Nh4 {[%emt 0:00:39]} Bg6 {[%emt 0:00:47]} 10. Bg5 {[%emt 0:01:26]} O-O {[%emt 0:00:24]} 11. Nxg6 {[%emt 0:00:14]} hxg6 {[%emt 0:00:12]} 12. a3 {[%emt 0:03:57]} Qb6 {[%emt 0:05:53]} 13. Be3 {[%emt 0:04:16]} Rac8 {[%emt 0:02:51]} 14. Na4 {[%emt 0:01:19]} Qc7 {[%emt 0:00:29]} 15. Rc1 {[%emt 0:05:33]} a6 {[%emt 0:01:07]} 16. c3 {[%emt 0:00:31]} Nd7 {[%emt 0:01:01]} 17. Nc5 {[%emt 0:01:00]} Rfd8 {[%emt 0:06:03]} 18. Bg4 {[%emt 0:01:57]} Nxc5 {[%emt 0:01:37]} 19. dxc5 {[%emt 0:00:10]} Na5 {[%emt 0:00:45]} 20. b4 {[%emt 0:00:53]} Nc4 {[%emt 0:00:15]} 21. a4 {[%emt 0:02:15]} Nxe3 {[%emt 0:00:44]} 22. fxe3 {[%emt 0:01:27]} b6 {[%emt 0:01:15]} 23. cxb6 {[%emt 0:03:06]} Qxb6 {[%emt 0:02:23]} 24. Qd4 {[%emt 0:00:12]} Qc6 {[%emt 0:03:22]} 25. e4 {[%emt 0:05:20]} Qxa4 {[%emt 0:02:10]} 26. exd5 {[%emt 0:00:51]} Rxd5 {[%emt 0:26:28]} 27. Qxd5 {[%emt 0:00:35]} exd5 {[%emt 0:00:08]} 28. Bxc8 {[%emt 0:00:07]} Bg5 {[%emt 0:06:20]} 29. Ra1 {[%emt 0:01:08]} Qc6 {[%emt 0:00:46]} 30. Bxa6 {[%emt 0:00:48]} Qxc3 {[%emt 0:00:56]} 31. b5 {[%emt 0:00:32]} Bf6 {[%emt 0:03:11]} 32. Rab1 {[%emt 0:01:22]} Bd4+ {[%emt 0:03:27]} 33. Kh1 {[%emt 0:00:15]} Bb6 {[%emt 0:00:56]} 34. Rbc1 {[%emt 0:06:04]} Qd2 {[%emt 0:08:30]} 35. Bb7 {[%emt 0:01:05]} d4 {[%emt 0:12:58]} 36. Bd5 {[%emt 0:02:09]} d3 {[%emt 0:01:32]} 37. Rf1 {[%emt 0:00:32]} Bf2 {[%emt 0:02:56]} 38. Rb1 {[%emt 0:05:41]} Bb6 {[%emt 0:02:46]} 39. Bxf7+ {[%emt 0:00:47]} Kh7 {[%emt 0:00:04]} 40. Rf3 {[%emt 0:01:37]} Kh6 {[%emt 0:01:03]} 41. Rh3+ {[%emt 0:30:14]} Kg5 {[%emt 0:30:09]} 42. Rg3+ {[%emt 0:00:12]} Kf6 {[%emt 0:01:00]} 43. Bxg6 {[%emt 0:00:36]} Be3 {[%emt 0:00:19]} 44. b6 {[%emt 0:02:00]} Qc2 {[%emt 0:01:26]} 45. Rf1+ {[%emt 0:00:44]} Bf2 {[%emt 0:01:19]} 46. Bxd3 {[%emt 0:00:58]} Qb2 {[%emt 0:00:11]} 47. Rxf2+ {[%emt 0:00:32]} 1-0

[Event "POR-ch Amateur 2018"]
[Site "Braga"]
[Date "2018.09.06"]
[Round "1"]
[White "Areal, Pedro"]
[Black "Godinho Marques, Pedro"]
[Result "0-1"]
[ECO "D00"]
[WhiteElo "1732"]
[BlackElo "1853"]
[PlyCount "119"]
[EventDate "2018.09.02"]
[EventType "tourn"]
[EventCountry "POR"]
[TimeControl "40/5400+30:1800+30"]
[WhiteClock "0:07:07"]
[BlackClock "0:05:21"]

1. d4 {[%emt 0:00:00]} d5 {[%emt 0:06:01]} 2. Bg5 {[%emt 0:00:18]} Nf6 {[%emt 0:04:57]} 3. Bxf6 {[%emt 0:00:38]} exf6 {[%emt 0:00:26]} 4. g3 {[%emt 0:00:40]} Bf5 {[%emt 0:05:34]} 5. Nd2 {[%emt 0:02:40]} c6 {[%emt 0:04:47]} 6. c3 {[%emt 0:01:28]} Qb6 {[%emt 0:02:00]} 7. Qb3 {[%emt 0:00:27]} Nd7 {[%emt 0:02:11]} 8. Bg2 {[%emt 0:01:26]} Be7 {[%emt 0:06:23]} 9. e3 {[%emt 0:01:18]} O-O {[%emt 0:01:58]} 10. Ne2 {[%emt 0:00:28]} a5 {[%emt 0:02:48]} 11. O-O {[%emt 0:08:00]} Qa6 {[%emt 0:08:32]} 12. Rfe1 {[%emt 0:03:52]} a4 {[%emt 0:05:15]} 13. Qd1 {[%emt 0:00:15]} Ra7 {[%emt 0:05:17]} 14. a3 {[%emt 0:06:26]} Nb6 {[%emt 0:08:45]} 15. Nf4 {[%emt 0:11:41]} Qb5 {[%emt 0:04:33]} 16. Qc1 {[%emt 0:11:00]} Nc4 {[%emt 0:03:25]} 17. Bf1 {[%emt 0:08:39]} g5 {[%emt 0:08:07]} 18. Nd3 {[%emt 0:10:34]} Nxd2 {[%emt 0:07:23]} 19. Qxd2 {[%emt 0:00:23]} Qb6 {[%emt 0:01:00]} 20. Nb4 {[%emt 0:06:55]} Qc7 {[%emt 0:00:33]} 21. Bg2 {[%emt 0:03:50]} Qd7 {[%emt 0:02:24]} 22. Rac1 {[%emt 0:01:40]} Bd6 {[%emt 0:00:49]} 23. Nd3 {[%emt 0:02:31]} Re8 {[%emt 0:03:18]} 24. Qd1 {[%emt 0:02:45]} Qe7 {[%emt 0:00:26]} 25. c4 {[%emt 0:04:47]} Be4 {[%emt 0:01:10]} 26. cxd5 {[%emt 0:03:09]} Bxg2 {[%emt 0:00:24]} 27. Kxg2 Qe4+ 28. Kg1 {[%emt 0:01:53]} Qxd5 {[%emt 0:00:55]} 29. Nc5 {[%emt 0:00:26]} Bxc5 {[%emt 0:00:47]} 30. Rxc5 {[%emt 0:00:23]} Qe6 {[%emt 0:00:31]} 31. Qh5 {[%emt 0:01:13]} b6 {[%emt 0:00:27]} 32. Rc2 {[%emt 0:00:21]} Ra5 {[%emt 0:00:43]} 33. Qf3 {[%emt 0:00:54]} c5 {[%emt 0:00:27]} 34. dxc5 {[%emt 0:00:41]} Rxc5 {[%emt 0:00:29]} 35. Rxc5 {[%emt 0:00:23]} bxc5 {[%emt 0:00:05]} 36. Qd1 {[%emt 0:01:02]} Rb8 {[%emt 0:01:01]} 37. Qc1 {[%emt 0:01:05]} Qb3 {[%emt 0:00:33]} 38. Re2 {[%emt 0:00:27]} Rd8 {[%emt 0:00:57]} 39. Rc2 {[%emt 0:01:02]} Rd5 {[%emt 0:00:43]} 40. Kg2 {[%emt 0:00:42]} Qb7 {[%emt 0:00:23]} 41. Kg1 {[%emt 0:30:13]} Qb3 {[%emt 0:30:04]} 42. h3 {[%emt 0:00:11]} Kg7 {[%emt 0:00:56]} 43. Kh2 {[%emt 0:00:14]} Qb5 {[%emt 0:00:23]} 44. Rc4 {[%emt 0:00:10]} Rf5 {[%emt 0:00:18]} 45. Qc2 {[%emt 0:00:19]} Rxf2+ {[%emt 0:00:06]} 46. Qxf2 {[%emt 0:00:13]} Qxc4 {[%emt 0:00:04]} 47. Qd2 {[%emt 0:00:16]} Qb3 {[%emt 0:00:15]} 48. Kg2 {[%emt 0:00:17]} Qb7+ {[%emt 0:00:17]} 49. Kh2 {[%emt 0:00:08]} Qe4 {[%emt 0:00:20]} 50. Qc3 {[%emt 0:00:18]} Qf5 {[%emt 0:00:26]} 51. Kg2 {[%emt 0:00:10]} Qe4+ {[%emt 0:00:08]} 52. Kf2 {[%emt 0:00:10]} Qh1 {[%emt 0:00:28]} 53. Qxc5 {[%emt 0:00:19]} Qh2+ {[%emt 0:00:10]} 54. Kf3 {[%emt 0:00:44]} Qxh3 {[%emt 0:00:22]} 55. Qd4 {[%emt 0:00:53]} Qf1+ {[%emt 0:00:22]} 56. Ke4 {[%emt 0:00:15]} Qg2+ {[%emt 0:00:35]} 57. Kd3 {[%emt 0:00:01]} Qxg3 {[%emt 0:00:15]} 58. Qxa4 {[%emt 0:00:01]} h5 {[%emt 0:00:11]} 59. Qe4 {[%emt 0:02:55]} h4 {[%emt 0:00:16]} 60. Kd4 0-1

[Event "POR-ch Amateur 2018"]
[Site "Braga"]
[Date "2018.09.06"]
[Round "1"]
[White "Brandao, Bruno Lopes"]
[Black "Pinto, Andre Filipe Silva"]
[Result "0-1"]
[ECO "D02"]
[WhiteElo "1711"]
[BlackElo "2002"]
[PlyCount "90"]
[EventDate "2018.09.02"]
[EventType "tourn"]
[EventCountry "POR"]
[TimeControl "40/5400+30:1800+30"]

1. d4 d5 2. Nf3 Bf5 3. Bf4 e6 4. e3 a6 5. c3 c5 6. Bd3 Qb6 7. Bxf5 exf5 8. Qc2 g6 9. O-O c4 10. Nbd2 Nd7 11. Ne5 Ngf6 12. h3 Bd6 13. Ndf3 O-O 14. Rad1 Qc7 15. Rfe1 Nh5 16. Bh2 f6 17. Nxd7 Bxh2+ 18. Nxh2 Qxd7 19. Nf1 Rfe8 20. Nd2 Ng7 21. f3 Re6 22. e4 fxe4 23. fxe4 b5 24. exd5 Qxd5 25. Nf3 Rae8 26. Qf2 Nh5 27. Rxe6 Rxe6 28. Re1 Nf4 29. Re3 Kf7 30. Ne1 Rxe3 31. Qxe3 g5 32. h4 Qe6 33. Qxe6+ Kxe6 34. hxg5 fxg5 35. g3 Nd3 36. Nxd3 cxd3 37. Kf2 h5 38. Ke3 h4 39. gxh4 gxh4 40. Kxd3 h3 41. c4 bxc4+ 42. Kxc4 h2 43. Kb4 h1=Q 44. Ka5 Qd5+ 45. Kxa6 Qxa2+ 0-1

[Event "POR-ch Amateur 2018"]
[Site "Braga"]
[Date "2018.09.06"]
[Round "1"]
[White "Ribeiro, Rodrigo"]
[Black "Leao, Tiago Miguel Da Sil"]
[Result "1-0"]
[ECO "D55"]
[WhiteElo "1696"]
[BlackElo "2084"]
[PlyCount "115"]
[EventDate "2018.09.02"]
[EventType "tourn"]
[EventCountry "POR"]
[TimeControl "40/5400+30:1800+30"]

1. d4 Nf6 2. c4 e6 3. Nc3 d5 4. Bg5 Be7 5. Nf3 O-O 6. e3 b6 7. Be2 Bb7 8. O-O Nbd7 9. a3 c5 10. dxc5 Nxc5 11. cxd5 Nxd5 12. Bxe7 Qxe7 13. Nxd5 Bxd5 14. b4 Rfd8 15. Qc2 Nb3 16. Rad1 Rac8 17. Qb2 Qf6 18. Qxf6 gxf6 19. Nd4 Nxd4 20. Rxd4 Bb7 21. Rfd1 Rxd4 22. Rxd4 Rc1+ 23. Rd1 Rc3 24. Ra1 a6 25. h3 Kf8 26. a4 Ke7 27. b5 a5 28. Rd1 e5 29. Bg4 Rc7 30. Kh2 Bc8 31. Bxc8 Rxc8 32. Kg3 Rc4 33. Ra1 h5 34. Ra2 h4+ 35. Kf3 f5 36. g3 f6 37. gxh4 Rxh4 38. Kg3 Rc4 39. h4 Rc1 40. Kg2 Rc4 41. Kg3 Rc1 42. f3 Ke6 43. h5 Rh1 44. Rc2 Rxh5 45. Rc6+ Ke7 46. Rxb6 f4+ 47. exf4 exf4+ 48. Kg4 Rd5 49. Ra6 f5+ 50. Kg5 Kd7 51. Rxa5 Kc8 52. Kxf4 Kb7 53. Ra6 Rc5 54. Kg5 Rd5 55. Rf6 Rd4 56. a5 Rd7 57. Rxf5 Ka7 58. f4 1-0

[Event "POR-ch Amateur 2018"]
[Site "Braga"]
[Date "2018.09.06"]
[Round "1"]
[White "De Sousa Silva, Lucas Jose"]
[Black "Mendes, Bruno Daniel"]
[Result "0-1"]
[ECO "C13"]
[WhiteElo "1656"]
[BlackElo "1432"]
[PlyCount "76"]
[EventDate "2018.09.02"]
[EventType "tourn"]
[EventCountry "POR"]
[TimeControl "40/5400+30:1800+30"]

1. e4 e6 2. d4 d5 3. Nc3 Nf6 4. Bg5 Be7 5. Bd3 a6 6. Nf3 c5 7. dxc5 Nc6 8. O-O O-O 9. h3 Nb4 10. exd5 Nbxd5 11. Bxf6 Bxf6 12. Nxd5 Qxd5 13. c3 Qxc5 14. Qc2 g6 15. Rad1 Qc7 16. Rfe1 Bd7 17. Be4 Bc6 18. Bxc6 Qxc6 19. Ne5 Bxe5 20. Rxe5 Rfd8 21. Ree1 b5 22. Rd3 Qc4 23. Rxd8+ Rxd8 24. a3 Kg7 25. Re4 Qd3 26. Qxd3 Rxd3 27. Rd4 Rxd4 28. cxd4 Kf6 29. g4 e5 30. dxe5+ Kxe5 31. Kf1 Kd4 32. Ke2 Ke4 33. Kd2 Kf3 34. Kc3 Kxf2 35. Kb4 Ke3 36. Ka5 f5 37. Kxa6 f4 38. Kxb5 f3 0-1

[Event "POR-ch Amateur 2018"]
[Site "Braga"]
[Date "2018.09.06"]
[Round "1"]
[White "De Souza, Paulo H  Pinheiro"]
[Black "Pacheco, Joao Daniel Barbosa"]
[Result "1-0"]
[ECO "C00"]
[WhiteElo "1619"]
[BlackElo "1181"]
[PlyCount "51"]
[EventDate "2018.09.02"]
[EventType "tourn"]
[EventCountry "POR"]
[TimeControl "40/5400+30:1800+30"]

1. e4 e6 2. Nf3 d5 3. exd5 exd5 4. d4 Nf6 5. Bb5+ c6 6. Bd3 Bd6 7. O-O Be6 8. Re1 O-O 9. Bg5 Nbd7 10. Ne5 Be7 11. Nd2 Nxe5 12. dxe5 Nd7 13. Qh5 g6 14. Bxe7 Qxe7 15. Qh6 Rfe8 16. Nf3 Qf8 17. Qh4 Qe7 18. Ng5 Nf8 19. Qg3 Qd7 20. h4 Bf5 21. Re3 Bxd3 22. cxd3 d4 23. Re4 c5 24. Re2 Re7 25. Ne4 Qd5 26. Nf6+ 1-0

[Event "POR-ch Amateur 2018"]
[Site "Braga"]
[Date "2018.09.06"]
[Round "1"]
[White "Da Silva, Pedro Vieira Prado"]
[Black "Duarte Mermow, Marcelo"]
[Result "1-0"]
[ECO "C67"]
[WhiteElo "1521"]
[BlackElo "2341"]
[PlyCount "35"]
[EventDate "2018.09.02"]
[EventType "tourn"]
[EventCountry "POR"]
[TimeControl "40/5400+30:1800+30"]

1. e4 e5 2. Nf3 Nc6 3. Bb5 Nf6 4. O-O Nxe4 5. Re1 Nf6 6. Bxc6 dxc6 7. Nxe5 Bd6 8. Nxc6+ Qe7 9. Nxe7 Bxe7 10. Qe2 O-O 11. Qxe7 Be6 12. Nc3 Rae8 13. Qxc7 Nd5 14. Nxd5 Rc8 15. Ne7+ Kh8 16. Nxc8 Rxc8 17. Qxc8+ Bxc8 18. Re8# 1-0

[Event "POR-ch Amateur 2018"]
[Site "Braga"]
[Date "2018.09.06"]
[Round "1"]
[White "Rodriguez Farias, Cesar David"]
[Black "Machado, Tiago Candido Leita"]
[Result "0-1"]
[ECO "C26"]
[WhiteElo "1445"]
[BlackElo "1473"]
[PlyCount "70"]
[EventDate "2018.09.02"]
[EventType "tourn"]
[EventCountry "POR"]
[TimeControl "40/5400+30:1800+30"]

1. e4 e5 2. Nc3 Nf6 3. Bc4 Bc5 4. Nf3 d6 5. O-O Bg4 6. Be2 Nc6 7. d3 h6 8. h3 Be6 9. Re1 Qd7 10. Na4 Bb6 11. Nxb6 axb6 12. Be3 O-O 13. c3 Ne7 14. Qc2 Qa4 15. b3 Qa5 16. d4 Ng6 17. d5 Bd7 18. Bd2 Nh7 19. Nh2 f5 20. c4 Qa7 21. Bf3 f4 22. a4 Qb8 23. Ra3 Qd8 24. Qa2 Qg5 25. a5 Bxh3 26. axb6 Bxg2 27. Bg4 Rxa3 28. Qxa3 cxb6 29. Qxd6 Nf6 30. Be6+ Kh8 31. Qxf8+ Nxf8 32. Bc8 Bf3+ 33. Ng4 Nxg4 34. Bb4 Ne3+ 35. Bg4 Qxg4+ 0-1

[Event "POR-ch Amateur 2018"]
[Site "Braga"]
[Date "2018.09.06"]
[Round "1"]
[White "Soares, Sara Joana De Moura"]
[Black "Guimaraes, Henrique"]
[Result "1-0"]
[ECO "C54"]
[WhiteElo "1431"]
[BlackElo "1135"]
[PlyCount "59"]
[EventDate "2018.09.02"]
[EventType "tourn"]
[EventCountry "POR"]
[TimeControl "40/5400+30:1800+30"]

1. e4 e5 2. Nf3 Nc6 3. Bc4 Bc5 4. c3 Nf6 5. d4 exd4 6. e5 d5 7. Bb5 Ne4 8. cxd4 Bb4+ 9. Nbd2 O-O 10. O-O Bg4 11. Nb3 f5 12. a3 Be7 13. Bxc6 bxc6 14. Na5 c5 15. Nc6 Qe8 16. Nxe7+ Qxe7 17. dxc5 Rad8 18. b4 f4 19. Qb3 Qe6 20. Nd4 Qg6 21. f3 Bh3 22. Qc2 Rf7 23. e6 Rf6 24. e7 Re8 25. fxe4 Rxe7 26. e5 Rf5 27. Nxf5 Bxf5 28. Qf2 Be4 29. Bxf4 Rf7 30. Qg3 1-0

[Event "POR-ch Amateur 2018"]
[Site "Braga"]
[Date "2018.09.06"]
[Round "1"]
[White "Fonseca, Pedro Miguel Ramos"]
[Black "Pacheco, Joao Pedro Lima"]
[Result "1-0"]
[ECO "C01"]
[WhiteElo "1393"]
[BlackElo "1084"]
[PlyCount "59"]
[EventDate "2018.09.02"]
[EventType "tourn"]
[EventCountry "POR"]
[TimeControl "40/5400+30:1800+30"]

1. e4 e6 2. d4 d5 3. exd5 exd5 4. Bd3 Nc6 5. c3 Nf6 6. Nf3 Be7 7. O-O O-O 8. h3 a6 9. Re1 Bd7 10. Qc2 g6 11. Ne5 Kg7 12. Nxd7 Qxd7 13. Be3 Bd6 14. Nd2 Ne7 15. Nf3 c6 16. Qd2 Nfg8 17. Ne5 Qc8 18. Ng4 Nf5 19. Bxf5 Qxf5 20. Bh6+ Nxh6 21. Qxh6+ Kh8 22. Qh4 f6 23. Re3 g5 24. Qh5 c5 25. Rf3 Qd7 26. Nxf6 Rxf6 27. Rxf6 Qe7 28. Rf7 Qe4 29. Qxg5 Rg8 30. Qf6+ 1-0

[Event "POR-ch Amateur 2018"]
[Site "Braga"]
[Date "2018.09.06"]
[Round "1"]
[White "Silva, Pedro Filipe Carval"]
[Black "Ribeiro, Gustavo"]
[Result "0-1"]
[ECO "B40"]
[WhiteElo "1361"]
[BlackElo "1414"]
[PlyCount "42"]
[EventDate "2018.09.02"]
[EventType "tourn"]
[EventCountry "POR"]
[TimeControl "40/5400+30:1800+30"]

1. e4 c5 2. Nf3 e6 3. d4 d5 4. exd5 exd5 5. Bb5+ Nc6 6. Nc3 Bg4 7. dxc5 Nf6 8. Bg5 Bxc5 9. Bxf6 Qxf6 10. Qxd5 Bxf3 11. Qxf3 Qxf3 12. gxf3 O-O-O 13. O-O Nd4 14. Bc4 Nxf3+ 15. Kg2 Nd2 16. Rfd1 Nxc4 17. b3 Bd4 18. Rd3 Ne5 19. Rg3 f5 20. f4 Ng4 21. Re1 Bf2 0-1

[Event "POR-ch Amateur 2018"]
[Site "Braga"]
[Date "2018.09.06"]
[Round "1"]
[White "Areal, Maria Beatriz Moura"]
[Black "Lomba, Lucas"]
[Result "0-1"]
[ECO "B27"]
[WhiteElo "1051"]
[BlackElo "1383"]
[PlyCount "41"]
[EventDate "2018.09.02"]
[EventType "tourn"]
[EventCountry "POR"]
[TimeControl "40/5400+30:1800+30"]

1. e4 c5 2. Nf3 g6 3. c3 Nc6 4. Bb5 Bg7 5. d4 cxd4 6. cxd4 Qb6 7. Bxc6 dxc6 8. O-O Nf6 9. Nc3 O-O 10. Be3 Qxb2 11. Qb3 Qxb3 12. axb3 Ng4 13. Bd2 Rd8 14. h3 Nh6 15. Be3 e5 16. Rfd1 exd4 17. Nxd4 Bxd4 18. Bxh6 Be6 19. Rac1 Rac8 20. Nb5 Bb6 21. Rc2 0-1

[Event "POR-ch Amateur 2018"]
[Site "Braga"]
[Date "2018.09.07"]
[Round "2"]
[White "Duarte Mermow, Marcelo"]
[Black "Rodriguez Farias, Cesar David"]
[Result "0-1"]
[ECO "C58"]
[WhiteElo "2341"]
[BlackElo "1445"]
[PlyCount "66"]
[EventDate "2018.09.02"]
[EventType "tourn"]
[EventCountry "POR"]
[TimeControl "40/5400+30:1800+30"]

1. e4 e5 2. Nf3 Nc6 3. Bc4 Nf6 4. Ng5 d5 5. exd5 Na5 6. Bb5+ Bd7 7. Nxf7 Kxf7 8. Bxd7 Qxd7 9. Nc3 Bc5 10. O-O Rhf8 11. d3 Kg8 12. Bg5 Nxd5 13. Nxd5 Qxd5 14. Qg4 Qf7 15. Bh4 Nc6 16. d4 Bxd4 17. c3 Bc5 18. Rad1 Ne7 19. Rd3 Rfd8 20. Rh3 Rf8 21. Bg3 Rad8 22. Qh4 Qg6 23. Re1 Nf5 24. Qh5 Qxh5 25. Rxh5 Nxg3 26. hxg3 Rde8 27. Kh1 Bxf2 28. Rf1 e4 29. Kh2 Bxg3+ 30. Kxg3 Rxf1 31. Kg4 Re6 32. Kg5 Rg6+ 33. Kh4 Rh1# 0-1

[Event "POR-ch Amateur 2018"]
[Site "Braga"]
[Date "2018.09.07"]
[Round "2"]
[White "Leao, Tiago Miguel Da Sil"]
[Black "Areal, Pedro"]
[Result "1/2-1/2"]
[ECO "B19"]
[WhiteElo "2084"]
[BlackElo "1732"]
[PlyCount "95"]
[EventDate "2018.09.02"]
[EventType "tourn"]
[EventCountry "POR"]
[TimeControl "40/5400+30:1800+30"]
[WhiteClock "0:02:26"]
[BlackClock "0:00:52"]

1. e4 {[%emt 0:00:00]} c6 {[%emt 0:00:00]} 2. d4 {[%emt 0:00:00]} d5 {[%emt 0:00:00]} 3. Nc3 {[%emt 0:00:00]} dxe4 {[%emt 0:00:35]} 4. Nxe4 {[%emt 0:00:05]} Bf5 {[%emt 0:00:48]} 5. Ng3 {[%emt 0:00:09]} Bg6 {[%emt 0:00:10]} 6. h4 {[%emt 0:00:08]} h6 {[%emt 0:01:01]} 7. Nf3 {[%emt 0:00:15]} Nd7 {[%emt 0:00:14]} 8. h5 {[%emt 0:00:19]} Bh7 9. Bd3 Bxd3 {[%emt 0:00:54]} 10. Qxd3 {[%emt 0:00:35]} Ngf6 {[%emt 0:01:17]} 11. Bd2 {[%emt 0:02:12]} e6 {[%emt 0:01:15]} 12. O-O-O {[%emt 0:02:02]} Be7 {[%emt 0:02:50]} 13. Ne4 {[%emt 0:04:19]} Nxe4 {[%emt 0:00:52]} 14. Qxe4 {[%emt 0:00:09]} Nf6 {[%emt 0:00:07]} 15. Qe2 {[%emt 0:00:41]} Qd5 {[%emt 0:09:40]} 16. c4 {[%emt 0:10:44]} Qe4 {[%emt 0:04:21]} 17. Qxe4 {[%emt 0:05:57]} Nxe4 {[%emt 0:00:07]} 18. Be3 {[%emt 0:00:34]} Nd6 {[%emt 0:05:43]} 19. Nd2 {[%emt 0:03:42]} Bf6 {[%emt 0:11:49]} 20. c5 {[%emt 0:13:58]} Nb5 {[%emt 0:08:31]} 21. Ne4 {[%emt 0:04:32]} Be7 {[%emt 0:00:55]} 22. Rh3 {[%emt 0:04:56]} Rd8 {[%emt 0:02:16]} 23. f4 {[%emt 0:08:20]} Nc7 {[%emt 0:01:18]} 24. g4 {[%emt 0:06:44]} Nd5 {[%emt 0:01:29]} 25. Nc3 {[%emt 0:07:09]} Rd7 {[%emt 0:04:43]} 26. Nxd5 {[%emt 0:06:46]} Rxd5 {[%emt 0:00:07]} 27. Bf2 {[%emt 0:01:18]} Kd7 {[%emt 0:03:43]} 28. Ra3 {[%emt 0:00:54]} a6 {[%emt 0:00:45]} 29. Rb3 {[%emt 0:00:16]} Kc8 {[%emt 0:00:28]} 30. Re1 {[%emt 0:02:51]} Bf6 {[%emt 0:02:06]} 31. Rd1 {[%emt 0:01:17]} Rhd8 {[%emt 0:06:20]} 32. Rbd3 {[%emt 0:00:47]} e5 {[%emt 0:01:12]} 33. fxe5 {[%emt 0:00:34]} Bxe5 {[%emt 0:00:43]} 34. Kc2 {[%emt 0:00:17]} Bf6 {[%emt 0:01:09]} 35. b4 {[%emt 0:01:13]} Re8 {[%emt 0:00:41]} 36. Re3 {[%emt 0:00:23]} Red8 {[%emt 0:03:39]} 37. Red3 {[%emt 0:02:31]} Re8 {[%emt 0:03:40]} 38. Re3 {[%emt 0:00:09]} Rxe3 {[%emt 0:00:02]} 39. Bxe3 {[%emt 0:00:09]} Kd7 {[%emt 0:02:02]} 40. Kd3 {[%emt 0:01:57]} Bh4 {[%emt 0:05:52]} 41. Rf1 {[%emt 0:33:04]} Ke6 {[%emt 0:30:29]} 42. Ke4 {[%emt 0:01:28]} Bg5 {[%emt 0:04:21]} 43. Rf5 {[%emt 0:07:00]} Rxf5 {[%emt 0:03:56]} 44. gxf5+ {[%emt 0:00:01]} Kd7 {[%emt 0:07:01]} 45. a3 {[%emt 0:00:52]} Bh4 {[%emt 0:01:03]} 46. Ke5 {[%emt 0:00:41]} Bf6+ {[%emt 0:00:20]} 47. Kf4 {[%emt 0:00:40]} Bg5+ 48. Ke4 1/2-1/2